fUSD/lending_fUSD_20260601
["ID","MTS","AMOUNT","RATE_DAILY","PERIOD"]
[423607309,1780258831000,3499.34,0.00030137,120]
[423607310,1780258854000,364.57,8.564e-05,2]
[423607311,1780258909000,100000.0,0.00030137,120]
[423607313,1780258969000,507.98669947,8.573e-05,2]
[423607312,1780258969000,511.77226911,8.574e-05,2]
[423607314,1780259033000,1000.0,8.564e-05,2]
[423607315,1780259047000,165.03,8.551e-05,2]
[423607316,1780259049000,190.76,8.626e-05,2]
[423607317,1780259055000,156.95,8.532e-05,2]
[423607320,1780259145000,352.69,8.499e-05,2]
[423607321,1780259185000,500.0,8.405e-05,2]
[423607324,1780259197000,1086.10079431,9.373e-05,3]
[423607322,1780259197000,1086.10079432,9.373e-05,3]
[423607323,1780259197000,1086.10079432,9.373e-05,3]
[423607325,1780259206000,187.94100398,9.232e-05,7]
[423607330,1780259232000,161.7,8.823e-05,2]
[423607329,1780259232000,161.7,8.403e-05,2]
[423607328,1780259232000,161.7,7.982e-05,2]
[423607334,1780259267000,150.0,9.051e-05,7]
[423607335,1780259268000,155.15055898,9.051e-05,7]
[423607337,1780259273000,6236.9012,8.951e-05,2]
[423607342,1780259348000,425.44,8.409e-05,2]
[423607343,1780259349000,-537.9146598,9.004e-05,2]
[423607344,1780259366000,165.61,8.654e-05,2]
[423607355,1780259425000,200.0,8.345e-05,2]
[423607417,1780259432000,-608.51871782,9.05e-05,2]
[423607426,1780259432000,-608.51871782,9.05e-05,2]
[423607419,1780259432000,-608.51871782,9.05e-05,2]
[423607424,1780259432000,-608.51871782,9.05e-05,2]
[423607421,1780259432000,-608.51871782,9.05e-05,2]
[423607438,1780259432000,-608.51871782,9.05e-05,2]
[423607430,1780259432000,-608.51871782,9.05e-05,2]
[423607434,1780259432000,-608.51871782,9.05e-05,2]
[423607432,1780259432000,-608.51871782,9.05e-05,2]
[423607440,1780259432000,-608.51871782,9.05e-05,2]
[423607436,1780259432000,-608.51871782,9.05e-05,2]
[423607441,1780259432000,-608.51871782,9.05e-05,2]
[423607452,1780259432000,-608.51871782,9.05e-05,2]
[423607442,1780259432000,-608.51871782,9.05e-05,2]
[423607445,1780259432000,-608.51871782,9.05e-05,2]
[423607447,1780259432000,-608.51871782,9.05e-05,2]
[423607444,1780259432000,-608.51871782,9.05e-05,2]
[423607446,1780259432000,-608.51871782,9.05e-05,2]
[423607449,1780259432000,-608.51871782,9.05e-05,2]
[423607428,1780259432000,-608.51871782,9.05e-05,2]
[423607453,1780259432000,-608.51871782,9.05e-05,2]
[423607451,1780259432000,-608.51871782,9.05e-05,2]
[423607448,1780259432000,-608.51871782,9.05e-05,2]
[423607450,1780259432000,-608.51871782,9.05e-05,2]
[423607455,1780259432000,-608.51871782,9.05e-05,2]
[423607443,1780259432000,-608.51871782,9.05e-05,2]
[423607415,1780259432000,-608.51871782,9.05e-05,2]
[423607389,1780259432000,-608.51871782,9.05e-05,2]
[423607410,1780259432000,-608.51871782,9.05e-05,2]
[423607456,1780259432000,-581.47344149,9.05e-05,2]
[423607361,1780259432000,-1200.0,9.004e-05,2]
[423607365,1780259432000,-885.70958773,9.049e-05,2]
[423607363,1780259432000,-38.63883329,9.049e-05,2]
[423607362,1780259432000,-254.84273,9.004e-05,2]
[423607369,1780259432000,-300.0,9.049e-05,2]
[423607366,1780259432000,-300.0,9.049e-05,2]
[423607367,1780259432000,-1200.0,9.049e-05,2]
[423607364,1780259432000,-275.65157898,9.049e-05,2]
[423607377,1780259432000,-500.0,9.05e-05,2]
[423607379,1780259432000,-250.0,9.05e-05,2]
[423607381,1780259432000,-608.51871782,9.05e-05,2]
[423607371,1780259432000,-1000.0,9.05e-05,2]
[423607373,1780259432000,-1000.0,9.05e-05,2]
[423607375,1780259432000,-1000.0,9.05e-05,2]
[423607387,1780259432000,-608.51871782,9.05e-05,2]
[423607393,1780259432000,-608.51871782,9.05e-05,2]
[423607383,1780259432000,-608.51871782,9.05e-05,2]
[423607395,1780259432000,-608.51871782,9.05e-05,2]
[423607385,1780259432000,-608.51871782,9.05e-05,2]
[423607391,1780259432000,-608.51871782,9.05e-05,2]
[423607413,1780259432000,-608.51871782,9.05e-05,2]
[423607401,1780259432000,-608.51871782,9.05e-05,2]
[423607404,1780259432000,-608.51871782,9.05e-05,2]
[423607407,1780259432000,-608.51871782,9.05e-05,2]
[423607398,1780259432000,-608.51871782,9.05e-05,2]
[423607457,1780259432000,-581.47344149,9.05e-05,2]
[423607509,1780259432000,-500.0,9.373e-05,2]
[423607458,1780259432000,-581.47344149,9.05e-05,2]
[423607490,1780259432000,-49580.54410358,9.364e-05,2]
[423607488,1780259432000,-24208.3,9.342e-05,2]
[423607489,1780259432000,-291.0,9.363e-05,2]
[423607494,1780259432000,-151.0,9.371e-05,2]
[423607493,1780259432000,-151.0,9.371e-05,2]
[423607495,1780259432000,-151.0,9.371e-05,2]
[423607500,1780259432000,-500.0,9.373e-05,2]
[423607499,1780259432000,-500.0,9.373e-05,2]
[423607497,1780259432000,-589.85923443,9.373e-05,2]
[423607496,1780259432000,-500.0,9.373e-05,2]
[423607498,1780259432000,-162.9014641,9.373e-05,2]
[423607502,1780259432000,-500.0,9.373e-05,2]
[423607501,1780259432000,-500.0,9.373e-05,2]
[423607504,1780259432000,-500.0,9.373e-05,2]
[423607505,1780259432000,-500.0,9.373e-05,2]
[423607503,1780259432000,-178.63573383,9.373e-05,2]
[423607506,1780259432000,-500.0,9.373e-05,2]
[423607508,1780259432000,-500.0,9.373e-05,2]
[423607507,1780259432000,-500.0,9.373e-05,2]
[423607513,1780259432000,-500.0,9.373e-05,2]
[423607510,1780259432000,-500.0,9.373e-05,2]
[423607514,1780259432000,-500.0,9.373e-05,2]
[423607511,1780259432000,-500.0,9.373e-05,2]
[423607512,1780259432000,-309.2884295,9.373e-05,2]
[423607454,1780259432000,-608.51871782,9.05e-05,2]
[423607491,1780259432000,-165.61,9.369e-05,2]
[423607487,1780259432000,-200.7737024,9.327e-05,2]
[423607492,1780259432000,-151.0,9.371e-05,2]
[423607480,1780259432000,-150.0,9.143e-05,2]
[423607461,1780259432000,-581.47344149,9.05e-05,2]
[423607459,1780259432000,-581.47344149,9.05e-05,2]
[423607460,1780259432000,-581.47344149,9.05e-05,2]
[423607463,1780259432000,-581.47344149,9.05e-05,2]
[423607462,1780259432000,-581.47344149,9.05e-05,2]
[423607466,1780259432000,-581.47344149,9.05e-05,2]
[423607464,1780259432000,-581.47344149,9.05e-05,2]
[423607483,1780259432000,-150.0,9.247e-05,2]
[423607465,1780259432000,-581.47344149,9.05e-05,2]
[423607468,1780259432000,-581.47344149,9.05e-05,2]
[423607471,1780259432000,-581.47344149,9.05e-05,2]
[423607470,1780259432000,-581.47344149,9.05e-05,2]
[423607472,1780259432000,-581.47344149,9.05e-05,2]
[423607467,1780259432000,-581.47344149,9.05e-05,2]
[423607473,1780259432000,-581.47344149,9.05e-05,2]
[423607477,1780259432000,-291.0,9.093e-05,2]
[423607476,1780259432000,-342.49977101,9.069e-05,2]
[423607479,1780259432000,-304.17750839,9.097e-05,2]
[423607474,1780259432000,-150.0,9.05e-05,2]
[423607475,1780259432000,-176597.45980858,9.051e-05,2]
[423607478,1780259432000,-1001.47110534,9.096e-05,2]
[423607485,1780259432000,-2500.0,9.274e-05,2]
[423607484,1780259432000,-291.0,9.273e-05,2]
[423607481,1780259432000,-291.0,9.183e-05,2]
[423607486,1780259432000,-500.0,9.324e-05,2]
[423607482,1780259432000,-150.0,9.247e-05,2]
[423607469,1780259432000,-581.47344149,9.05e-05,2]
[423607523,1780259433000,-500.0,9.373e-05,2]
[423607526,1780259433000,-159.87722904,9.373e-05,2]
[423607525,1780259433000,-500.0,9.373e-05,2]
[423607524,1780259433000,-500.0,9.373e-05,2]
[423607520,1780259433000,-500.0,9.373e-05,2]
[423607515,1780259433000,-500.0,9.373e-05,2]
[423607521,1780259433000,-500.0,9.373e-05,2]
[423607518,1780259433000,-500.0,9.373e-05,2]
[423607519,1780259433000,-500.0,9.373e-05,2]
[423607516,1780259433000,-500.0,9.373e-05,2]
[423607527,1780259433000,-500.0,9.373e-05,2]
[423607522,1780259433000,-500.0,9.373e-05,2]
[423607529,1780259433000,-500.0,9.373e-05,2]
[423607517,1780259433000,-500.0,9.373e-05,2]
[423607532,1780259433000,-500.0,9.373e-05,2]
[423607531,1780259433000,-500.0,9.373e-05,2]
[423607543,1780259433000,-741.54979015,9.374e-05,2]
[423607542,1780259433000,-45062.93203426,9.374e-05,2]
[423607540,1780259433000,-35124.75528186,9.374e-05,2]
[423607541,1780259433000,-103130.31220818,9.374e-05,2]
[423607539,1780259433000,-300.0,9.373e-05,2]
[423607538,1780259433000,-364.86592086,9.373e-05,2]
[423607535,1780259433000,-570.61909377,9.373e-05,2]
[423607536,1780259433000,-570.61909377,9.373e-05,2]
[423607533,1780259433000,-548.83971124,9.373e-05,2]
[423607534,1780259433000,-382.48870801,9.373e-05,2]
[423607528,1780259433000,-500.0,9.373e-05,2]
[423607530,1780259433000,-500.0,9.373e-05,2]
[423607537,1780259433000,-570.61909377,9.373e-05,2]
[423607550,1780259437000,-10000.0,9.374e-05,2]
[423607547,1780259437000,-2438.15312271,9.374e-05,2]
[423607546,1780259437000,-1131.52677623,9.374e-05,2]
[423607548,1780259437000,-6078.0,9.374e-05,2]
[423607549,1780259437000,-1306292.77078661,9.374e-05,2]
[423607557,1780259437000,-291.0,9.453e-05,2]
[423607556,1780259437000,-17562.0,9.452e-05,2]
[423607554,1780259437000,-4440.0,9.424e-05,2]
[423607553,1780259437000,-2220.0,9.424e-05,2]
[423607555,1780259437000,-500.0,9.426e-05,2]
[423607552,1780259437000,-3330.0,9.424e-05,2]
[423607551,1780259437000,-1607.54,9.42e-05,2]
[423607604,1780259438000,-291.0,9.813e-05,2]
[423607602,1780259438000,-215.61611719,9.812e-05,2]
[423607600,1780259438000,-150.0,9.76e-05,2]
[423607601,1780259438000,-1607.54,9.785e-05,2]
[423607597,1780259438000,-1607.54,9.733e-05,2]
[423607595,1780259438000,-152.0,9.704e-05,7]
[423607599,1780259438000,-150.0,9.75e-05,2]
[423607598,1780259438000,-152.0,9.745e-05,7]
[423607596,1780259438000,-291.0,9.723e-05,2]
[423607593,1780259438000,-1607.54,9.681e-05,2]
[423607591,1780259438000,-291.0,9.633e-05,2]
[423607594,1780259438000,-150.0,9.683e-05,2]
[423607603,1780259438000,-209.17060647,9.812e-05,2]
[423607621,1780259438000,-150.0,9.95e-05,2]
[423607618,1780259438000,-500.0,9.906e-05,2]
[423607617,1780259438000,-500.0,9.905e-05,2]
[423607609,1780259438000,-983.75,9.878e-05,2]
[423607613,1780259438000,-1607.54,9.89e-05,2]
[423607605,1780259438000,-150.0,9.817e-05,2]
[423607607,1780259438000,-500.0,9.872e-05,2]
[423607611,1780259438000,-150.0,9.884e-05,2]
[423607615,1780259438000,-299.0,9.903e-05,2]
[423607620,1780259438000,-1607.54,9.942e-05,2]
[423607622,1780259438000,-420.0,9.954e-05,2]
[423607623,1780259438000,-1680.0,9.954e-05,2]
[423607592,1780259438000,-160.0,9.635e-05,2]
[423607625,1780259438000,-2530.69934989,9.955e-05,2]
[423607624,1780259438000,-307.0,9.954e-05,2]
[423607606,1780259438000,-1607.54,9.838e-05,2]
[423607587,1780259438000,-150.0,9.616e-05,2]
[423607575,1780259438000,-1518.69740218,9.573e-05,2]
[423607589,1780259438000,-165.84,9.623e-05,2]
[423607561,1780259438000,-169.8,9.472e-05,2]
[423607558,1780259438000,-151.0,9.471e-05,2]
[423607560,1780259438000,-169.8,9.472e-05,2]
[423607559,1780259438000,-243.815857,9.471e-05,2]
[423607565,1780259438000,-33237.5546,9.474e-05,2]
[423607563,1780259438000,-1607.54,9.472e-05,2]
[423607562,1780259438000,-169.8,9.472e-05,2]
[423607564,1780259438000,-150.0,9.473e-05,2]
[423607574,1780259438000,-2946.69806302,9.573e-05,2]
[423607567,1780259438000,-260.90912993,9.474e-05,2]
[423607573,1780259438000,-151.0,9.571e-05,2]
[423607568,1780259438000,-15044.32255266,9.474e-05,2]
[423607572,1780259438000,-291.0,9.543e-05,2]
[423607571,1780259438000,-170.2,9.525e-05,2]
[423607570,1780259438000,-1607.54,9.525e-05,2]
[423607569,1780259438000,-150.0,9.503e-05,2]
[423607566,1780259438000,-2500000.0,9.474e-05,2]
[423607576,1780259438000,-548.4203884,9.574e-05,2]
[423607577,1780259438000,-3707.2330037,9.574e-05,2]
[423607578,1780259438000,-1671738.7917839,9.574e-05,2]
[423607580,1780259438000,-1412.603045,9.574e-05,2]
[423607579,1780259438000,-20595.8459443,9.574e-05,2]
[423607581,1780259438000,-1412.603045,9.574e-05,2]
[423607582,1780259438000,-1412.603045,9.574e-05,2]
[423607583,1780259438000,-1412.603045,9.574e-05,2]
[423607584,1780259438000,-151.0,9.574e-05,2]
[423607628,1780259438000,-1607.54,9.994e-05,2]
[423607586,1780259438000,-500.0,9.598e-05,2]
[423607588,1780259438000,-165.03,9.62e-05,2]
[423607590,1780259438000,-1607.54,9.629e-05,2]
[423607632,1780259438000,-254.44369755,0.0001,2]
[423607585,1780259438000,-1607.54,9.577e-05,2]
[423607627,1780259438000,-255.0,9.955e-05,2]
[423607664,1780259438000,-165.84,0.00010357,2]
[423607663,1780259438000,-150.0,0.00010351,2]
[423607665,1780259438000,-1607.54,0.0001036,2]
[423607667,1780259438000,-1607.54,0.00010412,2]
[423607671,1780259438000,-4000.0,0.00010529,2]
[423607668,1780259438000,-150.0,0.00010418,2]
[423607670,1780259438000,-150.0,0.00010485,2]
[423607666,1780259438000,-500.0,0.00010411,2]
[423607669,1780259438000,-500.0,0.0001042,2]
[423607673,1780259438000,-150.0,0.00010618,2]
[423607674,1780259438000,-150.0,0.00010685,2]
[423607672,1780259438000,-150.0,0.00010551,2]
[423607676,1780259438000,-500.0,0.00010694,2]
[423607678,1780259438000,-151.0,0.000107,2]
[423607675,1780259438000,-165.03,0.00010689,2]
[423607679,1780259438000,-1412.603045,0.000107,2]
[423607680,1780259438000,-1412.603045,0.000107,2]
[423607677,1780259438000,-1409208.02405125,0.000107,2]
[423607681,1780259438000,-1412.603045,0.000107,2]
[423607683,1780259438000,-151.0,0.000107,2]
[423607682,1780259438000,-1412.603045,0.000107,2]
[423607685,1780259438000,-10112.46115003,0.000109,2]
[423607686,1780259438000,-587.0,0.00010949,2]
[423607684,1780259438000,-4000.0,0.00010779,2]
[423607688,1780259438000,-433.0,0.0001095,2]
[423607689,1780259438000,-150.0,0.00010959,2]
[423607687,1780259438000,-2351.0,0.00010949,2]
[423607690,1780259438000,-151.0,0.00010959,2]
[423607691,1780259438000,-151.0,0.00010959,2]
[423607661,1780259438000,-207749.67860328,0.000103,2]
[423607662,1780259438000,-1607.54,0.00010307,2]
[423607626,1780259438000,-250.0,9.955e-05,2]
[423607659,1780259438000,-4000.0,0.00010278,2]
[423607660,1780259438000,-150.0,0.00010284,2]
[423607629,1780259438000,-3981.66583609,0.0001,2]
[423607630,1780259438000,-163.57,0.0001,2]
[423607631,1780259438000,-428.81470158,0.0001,2]
[423607633,1780259438000,-293.09165774,0.0001,2]
[423607635,1780259438000,-340.0,0.0001,2]
[423607634,1780259438000,-340.0,0.0001,2]
[423607638,1780259438000,-2536.49332505,0.0001,2]
[423607636,1780259438000,-340.26337355,0.0001,2]
[423607641,1780259438000,-150.0,0.00010017,2]
[423607640,1780259438000,-150.0,0.00010017,2]
[423607639,1780259438000,-2536.49332505,0.0001,2]
[423607644,1780259438000,-1607.54,0.00010046,2]
[423607642,1780259438000,-2000.0,0.00010023,2]
[423607637,1780259438000,-2536.49332505,0.0001,2]
[423607645,1780259438000,-155.34,0.00010053,2]
[423607643,1780259438000,-4000.0,0.00010027,2]
[423607654,1780259438000,-95418.20725846,0.0001018,2]
[423607658,1780259438000,-150.0,0.00010274,2]
[423607652,1780259438000,-150.0,0.00010151,2]
[423607656,1780259438000,-150.0,0.00010217,2]
[423607651,1780259438000,-500.0,0.00010146,2]
[423607657,1780259438000,-1607.54,0.00010255,2]
[423607653,1780259438000,-1607.54,0.00010151,2]
[423607655,1780259438000,-1607.54,0.00010203,2]
[423607650,1780259438000,-1607.54,0.00010099,2]
[423607646,1780259438000,-165.61,0.00010083,2]
[423607648,1780259438000,-756.735071,0.00010094,2]
[423607647,1780259438000,-150.0,0.00010084,2]
[423607649,1780259438000,-1152.046319,0.00010094,2]
[423607732,1780259439000,-952.7,0.00012807,2]
[423607736,1780259439000,-190.76,0.00012939,2]
[423607734,1780259439000,-952.7,0.00012874,2]
[423607735,1780259439000,-500.0,0.00012885,2]
[423607731,1780259439000,-952.7,0.00012739,2]
[423607725,1780259439000,-2000.0,0.00012529,2]
[423607730,1780259439000,-952.7,0.00012672,2]
[423607729,1780259439000,-500.0,0.00012612,2]
[423607727,1780259439000,-155.34,0.00012566,2]
[423607723,1780259439000,-952.7,0.00012401,2]
[423607733,1780259439000,-165.03,0.00012827,2]
[423607737,1780259439000,-952.7,0.00012942,2]
[423607728,1780259439000,-952.7,0.00012604,2]
[423607739,1780259439000,-952.7,0.00013077,2]
[423607756,1780259439000,-381.51633189,0.00013698,2]
[423607738,1780259439000,-952.7,0.00013009,2]
[423607742,1780259439000,-1539.06,0.00013191,2]
[423607743,1780259439000,-952.7,0.00013212,2]
[423607741,1780259439000,-500.0,0.00013159,2]
[423607744,1780259439000,-1009.0,0.00013248,2]
[423607745,1780259439000,-357.0,0.00013249,2]
[423607746,1780259439000,-952.7,0.0001328,2]
[423607748,1780259439000,-952.7,0.00013347,2]
[423607749,1780259439000,-952.7,0.00013415,2]
[423607747,1780259439000,-236.12847992,0.00013343,2]
[423607751,1780259439000,-952.7,0.00013483,2]
[423607750,1780259439000,-500.0,0.00013433,2]
[423607753,1780259439000,-151.0,0.00013596,2]
[423607726,1780259439000,-952.7,0.00012536,2]
[423607740,1780259439000,-952.7,0.00013145,2]
[423607724,1780259439000,-952.7,0.00012469,2]
[423607709,1780259439000,-314.0,0.00011781,2]
[423607720,1780259439000,-180.87,0.00012329,2]
[423607755,1780259439000,-151.0,0.00013698,2]
[423607693,1780259439000,-151.0,0.00010959,2]
[423607692,1780259439000,-151.0,0.00010959,2]
[423607695,1780259439000,-221.43,0.00010989,2]
[423607694,1780259439000,-500.0,0.00010968,2]
[423607697,1780259439000,-150.0,0.00010989,2]
[423607696,1780259439000,-150.0,0.00010989,2]
[423607698,1780259439000,-150.0,0.00010989,2]
[423607699,1780259439000,-4000.0,0.0001103,2]
[423607700,1780259439000,-37535.4881865,0.00011099,2]
[423607701,1780259439000,-37535.4881865,0.00011099,2]
[423607704,1780259439000,-2000.0,0.00011276,2]
[423607705,1780259439000,-250.0,0.00011359,2]
[423607703,1780259439000,-500.0,0.00011242,2]
[423607702,1780259439000,-1590.05824976,0.00011102,2]
[423607706,1780259439000,-500.0,0.00011516,2]
[423607707,1780259439000,-1539.06,0.00011725,2]
[423607710,1780259439000,-500.0,0.0001179,2]
[423607708,1780259439000,-165.03,0.00011758,2]
[423607712,1780259439000,-420.0,0.00012044,2]
[423607711,1780259439000,-3412.3,0.00011992,2]
[423607714,1780259439000,-736.0,0.00012045,2]
[423607713,1780259439000,-3292.0,0.00012044,2]
[423607715,1780259439000,-40526.3,0.00012055,2]
[423607717,1780259439000,-952.7,0.00012198,2]
[423607719,1780259439000,-952.7,0.00012266,2]
[423607718,1780259439000,-10112.46114999,0.00012239,2]
[423607716,1780259439000,-500.0,0.00012064,2]
[423607721,1780259439000,-952.7,0.00012334,2]
[423607722,1780259439000,-500.0,0.00012338,2]
[423607757,1780259439000,-262.70841091,0.00013698,2]
[423607760,1780259439000,-500.0,0.00013698,2]
[423607804,1780259439000,-500.0,0.00013698,2]
[423607792,1780259439000,-550.8,0.00013698,2]
[423607795,1780259439000,-500.0,0.00013698,2]
[423607797,1780259439000,-500.0,0.00013698,2]
[423607801,1780259439000,-500.0,0.00013698,2]
[423607794,1780259439000,-500.0,0.00013698,2]
[423607799,1780259439000,-500.0,0.00013698,2]
[423607800,1780259439000,-500.0,0.00013698,2]
[423607796,1780259439000,-500.0,0.00013698,2]
[423607798,1780259439000,-500.0,0.00013698,2]
[423607803,1780259439000,-500.0,0.00013698,2]
[423607802,1780259439000,-500.0,0.00013698,2]
[423607806,1780259439000,-500.0,0.00013698,2]
[423607805,1780259439000,-500.0,0.00013698,2]
[423607807,1780259439000,-500.0,0.00013698,2]
[423607810,1780259439000,-500.0,0.00013698,2]
[423607809,1780259439000,-500.0,0.00013698,2]
[423607815,1780259439000,-500.0,0.00013698,2]
[423607808,1780259439000,-500.0,0.00013698,2]
[423607814,1780259439000,-500.0,0.00013698,2]
[423607812,1780259439000,-245.62717302,0.00013698,2]
[423607811,1780259439000,-500.0,0.00013698,2]
[423607813,1780259439000,-500.0,0.00013698,2]
[423607817,1780259439000,-500.0,0.00013698,2]
[423607816,1780259439000,-500.0,0.00013698,2]
[423607819,1780259439000,-500.0,0.00013698,2]
[423607818,1780259439000,-500.0,0.00013698,2]
[423607820,1780259439000,-500.0,0.00013698,2]
[423607759,1780259439000,-472.87513964,0.00013698,2]
[423607821,1780259439000,-500.0,0.00013698,2]
[423607790,1780259439000,-550.8,0.00013698,2]
[423607791,1780259439000,-550.8,0.00013698,2]
[423607793,1780259439000,-550.8,0.00013698,2]
[423607785,1780259439000,-550.8,0.00013698,2]
[423607768,1780259439000,-500.0,0.00013698,2]
[423607774,1780259439000,-202.78843615,0.00013698,2]
[423607770,1780259439000,-500.0,0.00013698,2]
[423607789,1780259439000,-550.8,0.00013698,2]
[423607771,1780259439000,-500.0,0.00013698,2]
[423607766,1780259439000,-500.0,0.00013698,2]
[423607769,1780259439000,-500.0,0.00013698,2]
[423607764,1780259439000,-500.0,0.00013698,2]
[423607763,1780259439000,-500.0,0.00013698,2]
[423607762,1780259439000,-500.0,0.00013698,2]
[423607761,1780259439000,-500.0,0.00013698,2]
[423607758,1780259439000,-303.83318809,0.00013698,2]
[423607754,1780259439000,-500.0,0.00013671,2]
[423607752,1780259439000,-151.0,0.00013596,2]
[423607765,1780259439000,-321.46293792,0.00013698,2]
[423607772,1780259439000,-500.0,0.00013698,2]
[423607767,1780259439000,-216.73250781,0.00013698,2]
[423607776,1780259439000,-550.8,0.00013698,2]
[423607786,1780259439000,-550.8,0.00013698,2]
[423607773,1780259439000,-500.0,0.00013698,2]
[423607784,1780259439000,-550.8,0.00013698,2]
[423607781,1780259439000,-550.8,0.00013698,2]
[423607782,1780259439000,-550.8,0.00013698,2]
[423607780,1780259439000,-550.8,0.00013698,2]
[423607783,1780259439000,-550.8,0.00013698,2]
[423607787,1780259439000,-550.8,0.00013698,2]
[423607788,1780259439000,-550.8,0.00013698,2]
[423607779,1780259439000,-550.8,0.00013698,2]
[423607777,1780259439000,-550.8,0.00013698,2]
[423607775,1780259439000,-550.8,0.00013698,2]
[423607778,1780259439000,-550.8,0.00013698,2]
[423607868,1780259440000,-500.0,0.00013698,2]
[423607865,1780259440000,-500.0,0.00013698,2]
[423607866,1780259440000,-500.0,0.00013698,2]
[423607867,1780259440000,-500.0,0.00013698,2]
[423607863,1780259440000,-500.0,0.00013698,2]
[423607862,1780259440000,-500.0,0.00013698,2]
[423607864,1780259440000,-500.0,0.00013698,2]
[423607860,1780259440000,-500.0,0.00013698,2]
[423607861,1780259440000,-500.0,0.00013698,2]
[423607858,1780259440000,-500.0,0.00013698,2]
[423607859,1780259440000,-500.0,0.00013698,2]
[423607869,1780259440000,-500.0,0.00013698,2]
[423607857,1780259440000,-500.0,0.00013698,2]
[423607871,1780259440000,-500.0,0.00013698,2]
[423607897,1780259440000,-534.65,0.00013698,2]
[423607872,1780259440000,-500.0,0.00013698,2]
[423607874,1780259440000,-500.0,0.00013698,2]
[423607876,1780259440000,-500.0,0.00013698,2]
[423607873,1780259440000,-500.0,0.00013698,2]
[423607878,1780259440000,-500.0,0.00013698,2]
[423607875,1780259440000,-500.0,0.00013698,2]
[423607877,1780259440000,-500.0,0.00013698,2]
[423607881,1780259440000,-500.0,0.00013698,2]
[423607882,1780259440000,-500.0,0.00013698,2]
[423607879,1780259440000,-500.0,0.00013698,2]
[423607880,1780259440000,-500.0,0.00013698,2]
[423607885,1780259440000,-500.0,0.00013698,2]
[423607884,1780259440000,-500.0,0.00013698,2]
[423607855,1780259440000,-500.0,0.00013698,2]
[423607870,1780259440000,-500.0,0.00013698,2]
[423607856,1780259440000,-500.0,0.00013698,2]
[423607822,1780259440000,-500.0,0.00013698,2]
[423607851,1780259440000,-500.0,0.00013698,2]
[423607824,1780259440000,-500.0,0.00013698,2]
[423607827,1780259440000,-196.77646155,0.00013698,2]
[423607826,1780259440000,-500.0,0.00013698,2]
[423607825,1780259440000,-500.0,0.00013698,2]
[423607823,1780259440000,-500.0,0.00013698,2]
[423607828,1780259440000,-500.0,0.00013698,2]
[423607830,1780259440000,-500.0,0.00013698,2]
[423607829,1780259440000,-500.0,0.00013698,2]
[423607832,1780259440000,-500.0,0.00013698,2]
[423607840,1780259440000,-500.0,0.00013698,2]
[423607833,1780259440000,-500.0,0.00013698,2]
[423607831,1780259440000,-500.0,0.00013698,2]
[423607834,1780259440000,-500.0,0.00013698,2]
[423607835,1780259440000,-500.0,0.00013698,2]
[423607853,1780259440000,-500.0,0.00013698,2]
[423607839,1780259440000,-500.0,0.00013698,2]
[423607836,1780259440000,-500.0,0.00013698,2]
[423607837,1780259440000,-500.0,0.00013698,2]
[423607843,1780259440000,-500.0,0.00013698,2]
[423607842,1780259440000,-500.0,0.00013698,2]
[423607841,1780259440000,-500.0,0.00013698,2]
[423607844,1780259440000,-500.0,0.00013698,2]
[423607852,1780259440000,-500.0,0.00013698,2]
[423607854,1780259440000,-500.0,0.00013698,2]
[423607849,1780259440000,-500.0,0.00013698,2]
[423607848,1780259440000,-500.0,0.00013698,2]
[423607850,1780259440000,-500.0,0.00013698,2]
[423607847,1780259440000,-500.0,0.00013698,2]
[423607846,1780259440000,-500.0,0.00013698,2]